Cogmind - Beta 13 X1 @@@ ROGUE MODE // 2023.07.12 @ 03:46:37 Player: cptwinky Result: Core destroyed Performance ------------- Evolutions (0) 0 Regions Visited (2) 400 Robots Destroyed (23) 115 Value Destroyed (584) 584 Prototype IDs (11) 220 Alien Tech Used (0) 0 Bonus (-35) -35 TOTAL SCORE: 1284 Bonus ------- Friendly Fire -35 Cogmind --------- Core Integrity 0/250 Matter 300/300 Energy 248/250 System Corruption 0% Temperature Cool (0) Movement Rolling (105) Ox1 Location -10/Subcaves Parts ------- > --- POWER (1) -------- Ion Engine > --- PROPULSION (2) --- Wheel Compact Wheel > --- UTILITY (2) ------ Large Storage Unit V3-11A's Pendant > --- WEAPON (2) ------- Subdweller Machine Gun Barrage Gun > --- INVENTORY (15) --- Subdweller Power Source Aluminum Leg Aluminum Leg Cargo Legs Seismic Detector Makeshift Armor Plating Recalibrator Cobbler Unit Subdweller Beam Cannon Assault Rifle Battle Rifle Battle Rifle Multitool Peak State ------------ > --- POWER ------------ Ion Engine > --- PROPULSION ------- Wheel Compact Wheel > --- UTILITY ---------- Large Storage Unit V3-11A's Pendant > --- WEAPON ----------- Subdweller Machine Gun Barrage Gun > --- INVENTORY -------- Subdweller Power Source Aluminum Leg Aluminum Leg Cargo Legs Seismic Detector Makeshift Armor Plating Recalibrator Cobbler Unit Subdweller Beam Cannon Assault Rifle Battle Rifle Multitool [Rating: 16] Favorites ----------- Power Ion Engine Engine Ion Engine Propulsion Light Treads Treads Light Treads Leg Aluminum Leg Wheel Wheel Utility Large Storage Unit Device V3-11A's Pendant Storage Large Storage Unit Processor Targeting Computer Weapon Beam Cannon Energy Gun Medium Laser Energy Cannon Beam Cannon Ballistic Gun Barrage Gun Ballistic Cannon Light Cannon Build | -11 -10 -10 ------- Run | Jun Mat Sub Slots Evolved . | . . . Power . | . . . Propulsion . | . . . Utility . | . . . Weapon . | . . . Parts Attached 17 | 2 7 8 Power 2 | . 1 1 Engine 2 | . 1 1 Core . | . . . Reactor . | . . . Propulsion 7 | 2 1 4 Treads 5 | 2 1 2 Leg . | . . . Wheel 2 | . . 2 Hover . | . . . Flight . | . . . Utility 3 | . 2 1 Device 1 | . . 1 Storage 1 | . 1 . Processor 1 | . 1 . Hackware . | . . . Protection . | . . . Artifact . | . . . Weapon 5 | . 3 2 Energy Gun 1 | . 1 . Energy Cannon 1 | . 1 . Ballistic Gun 2 | . . 2 Ballistic Cannon 1 | . 1 . Launcher . | . . . Special Weapon . | . . . Impact Weapon . | . . . Slashing Weapon . | . . . Piercing Weapon . | . . . Special Melee Weapon . | . . . Unidentified Prototypes 1 | . . 1 Parts Lost 9 | . 3 6 Power 2 | . 1 1 Propulsion 5 | . 1 4 Utility . | . . . Weapon 2 | . 1 1 Highest Loss Streak 2 | . 2 2 To Critical Strikes . | . . . Average Slot Usage (%) 98 | . 94 100 Engine 13 | . 13 14 Treads 20 | . 27 19 Wheel 7 | . . 8 Device 3 | . . 4 Storage 14 | . 14 14 Processor 9 | . 9 9 Energy Cannon 13 | . 10 13 Ballistic Gun 7 | . 6 8 Ballistic Cannon 6 | . 8 5 Naked Turns . | . . . Heaviest Build 33 | 11 31 33 Greatest Support 40 | 40 40 40 Greatest Overweight (x) 3 | . . 3 Average Overweight (x) . | . . . Largest Inventory Capacity 15 | 8 15 15 Average Capacity 14 | 8 14 15 Most Carried 15 | 6 10 15 Average Carried 9 | 6 8 9 Final Capacity 15 | 8 15 15 Final Carried 15 | 6 10 15 Class Distribution -------------------- 100% | Mutant Dominant Class ---------------- Mutant | -10/Materials Mutant | -10/Subcaves Resources | -11 -10 -10 ----------- Run | Jun Mat Sub Matter Collected 534 | 220 107 207 Remotely . | . . . Salvage Created 765 | . 493 272 Parts 53 | . 35 18 Haulers Intercepted 2 | . 2 . Recyclers Shooed . | . . . Parts Field Recycled . | . . . Retrieved Matter . | . . . Parts Self-Destructed 13 | . . 13 Prevented . | . . . Kills | -11 -10 -10 ------- Run | Jun Mat Sub Combat Hostiles Destroyed 18 | . 11 7 Melee 1 | . 1 . Guns 3 | . 3 . Cannons 14 | . 7 7 Classes Destroyed 8 | . 5 3 Hauler 2 | . 2 . Mechanic 1 | . 1 . Watcher 2 | . 2 . Swarmer 5 | . 3 2 Grunt 8 | . 8 . Artisan 1 | . . 1 Cobbler 1 | . . 1 Subdweller 5 | . . 5 Best Kill Streak 6 | . 6 2 Combat Bots Only 5 | . 5 2 Max Kills in Single Turn 2 | . 2 1 Gunslinging . | . . . Exploded . | . . . Melee 1 | . 1 . Uniques/NPCs Destroyed . | . . . Combat | -11 -10 -10 -------- Run | Jun Mat Sub Damage Taken 1588 | . 590 998 Core 256 | . 126 130 Absorbed by Shields . | . . . Core Remaining (%) 100 | 100 . . Volleys Fired 71 | . 33 38 Largest 2 | . 2 2 Hottest 95 | . 95 95 Shots Fired 132 | . 65 67 Gun 60 | . 43 17 Cannon 72 | . 22 50 Launcher . | . . . Special . | . . . Kinetic 70 | . 32 38 Thermal 62 | . 33 29 Explosive . | . . . Electromagnetic . | . . . Robot Hit Streak 11 | . 6 11 Robot Miss Streak 5 | . 5 2 Penetration Max . | . . . Secondary Targets . | . . . Shots Hit Robots 77 | . 36 41 Core Hits 37 | . 20 17 Critical Kills . | . . . Critical Parts Destroyed . | . . . Critical Strikes 2 | . 2 . Burn 1 | . 1 . Blast 1 | . 1 . Melee Attacks . | . . . Impact . | . . . Slashing . | . . . Piercing . | . . . Sneak Attacks . | . . . Combat Hostiles . | . . . Follow-up Attacks . | . . . Damage Inflicted 1214 | . 503 711 Guns 322 | . 220 102 Cannons 864 | . 255 609 Explosions . | . . . Melee . | . . . Ramming 28 | . 28 . Kinetic 502 | . 161 341 Thermal 684 | . 314 370 Explosive . | . . . Electromagnetic . | . . . Impact . | . . . Slashing . | . . . Piercing . | . . . Highest Corruption . | . . . Average Corruption . | . . . Corruption Purged . | . . . Corruption Blocked . | . . . Overload Shots . | . . . Overflow Damage 15 | . . 15 Projectiles 15 | . . 15 Explosions . | . . . Melee . | . . . Knockbacks 4 | . 1 3 Impact . | . . . Kinetic 3 | . 1 2 Secondary 1 | . . 1 Self-Inflicted Damage . | . . . Shots . | . . . Rammed 7 | . 7 . Targets Rammed 8 | . 8 . Kicked . | . . . Crushed 1 | . 1 . Highest Temperature 262 | . 262 8 Average Temperature 75 | . 84 6 Received Heat Transfer 249 | . 204 45 Effects 2 | . 2 . Interference 2 | . 2 . Siege Activations . | . . . Robots Corrupted . | . . . Combat Hostiles . | . . . Parts Fried . | . . . Impact Corruptions . | . . . Robots Melted . | . . . Combat Hostiles . | . . . Parts Melted 1 | . 1 . Heat Transferred 1628 | . 851 777 Parts Sabotaged . | . . . Parts Stolen . | . . . Parts Stripped . | . . . Power Chain Reactions . | . . . Missiles Intercepted . | . . . Alert | -11 -10 -10 ------- Run | Jun Mat Sub Peak Influence 305 | . 305 . Initial . | . . . Average 159 | . 164 . Maximum Alert Level 1 | . 1 . Low Security (%) 56 | 100 55 . Level 1 43 | . 44 . Level 2 . | . . . Level 3 . | . . . Level 4 . | . . . Level 5 . | . . . High Security . | . . . Max Security . | . . . Squads Dispatched 3 | . 3 . Investigation 2 | . 2 . Extermination . | . . . Reinforcement 1 | . 1 . Assault . | . . . Garrison . | . . . Intercept . | . . . Searches Triggered . | . . . Construction Impeded . | . . . Haulers Reinforced . | . . . Active Scanning Responses . | . . . Cargo Convoy Interrupts . | . . . Stealth | -11 -10 -10 --------- Run | Jun Mat Sub Distress Signals 1 | . 1 . Communications Jammed . | . . . Distress Signals . | . . . Times Spotted 28 | . 18 10 Peak Tracking Total 7 | . 7 3 Tactical Retreats . | . . . Traps | -11 -10 -10 ------- Run | Jun Mat Sub Traps Triggered 7 | . 1 6 Indirectly . | . . . Trap Hack Attempts . | . . . Triggered . | . . . Disarmed . | . . . Reprogrammed . | . . . Reused . | . . . Traps Extracted . | . . . Installed . | . . . Triggered . | . . . Machines | -11 -10 -10 ---------- Run | Jun Mat Sub Machines Disabled 1 | . . 1 Max in Single Turn 1 | . . 1 Machines Repaired . | . . . Machines Sabotaged . | . . . Overloaded Fab Kills . | . . . Hacking | -11 -10 -10 --------- Run | Jun Mat Sub Machines Accessed 4 | . 3 1 Terminals 1 | . 1 . Fabricators . | . . . Repair Stations 1 | . 1 . Recycling Units 1 | . 1 . Scanalyzers . | . . . Garrison Access . | . . . Total Hacks 10 | . 9 1 Successful 6 | . 5 1 Failed 4 | . 4 . Catastrophic . | . . . Database Lockouts . | . . . Manual 7 | . 7 . Terminals 5 | . 5 . Fabricators . | . . . Repair Stations 1 | . 1 . Recycling Units 3 | . 3 . Scanalyzers . | . . . Garrison Access . | . . . Terminal Hacks 4 | . 3 1 Robot Analysis 3 | . 3 . Derelict Proto ID Bank 1 | . . 1 Fabricator Hacks . | . . . Repair Station Hacks . | . . . Recycling Unit Hacks 1 | . 1 . Retrieve Components 1 | . 1 . Scanalyzer . | . . . Garrison Access Hacks . | . . . Unauthorized Hacks 1 | . 1 . Terminals . | . . . Fabricators . | . . . Repair Stations . | . . . Recycling Units 1 | . 1 . Tunnel 1 | . 1 . Scanalyzers . | . . . Garrison Access . | . . . Data Cores Recovered . | . . . Used . | . . . Hacking Detections 2 | . 2 . Full Trace Events . | . . . Feedback Events . | . . . Feedback Blocked . | . . . Robot Schematics Acquired . | . . . Robots Built . | . . . Authchips . | . . . Time . | . . . Total Robot Build Rating . | . . . Part Schematics Acquired . | . . . Parts Built . | . . . Authchips . | . . . Time . | . . . Total Part Build Rating . | . . . Parts Repaired . | . . . Time . | . . . Parts Recycled . | . . . Recycled Matter . | . . . Retrieved Matter . | . . . Retrieved Components 3 | . 3 . Parts Scanalyzed . | . . . Part Schematics Acquired . | . . . Parts Damaged . | . . . Bothacking | -11 -10 -10 ------------ Run | Jun Mat Sub Used RIF Installer . | . . . Robots Hacked . | . . . Non-combat . | . . . Combat . | . . . Robot Hacks Applied . | . . . Relay Couplers Released . | . . . Fabnet Peak Effective % . | . . . Robots Rewired . | . . . Allies Hacked . | . . . Hacks Repelled . | . . . Allies | -11 -10 -10 -------- Run | Jun Mat Sub Total Allies 3 | . . 3 Largest Group 3 | . . 3 Highest-Rated Group 57 | . . 57 Highest-Rated Ally 19 | . . 19 Total Orders . | . . . Ally Attacks . | . . . Total Damage . | . . . Kills . | . . . Allies Corrupted . | . . . Allies Melted . | . . . Intel | -11 -10 -10 ------- Run | Jun Mat Sub Robot Analysis Total 3 | . 3 . Derelict Logs Recovered . | . . . Drone Launches . | . . . Drone Recoveries . | . . . Exploration | -11 -10 -10 ------------- Run | Jun Mat Sub Turns Passed 3054 | 16 597 2441 Spaces Moved 1479 | 9 293 1177 Core . | . . . Treads 911 | 9 293 609 Legs . | . . . Wheels 568 | . . 568 Hover . | . . . Flight . | . . . Fastest Speed 105 | 160 160 105 Average Speed 141 | 160 160 136 Slowest Speed 160 | 160 160 160 Overloaded Moves . | . . . Propulsion Burnouts . | . . . Robots Hopped . | . . . Cave-ins Triggered . | . . . Exploration Rate (%) 27 | 2 37 43 Regions Visited 2 Branch Regions 1 Pre-discovered Areas 1 | . 1 . Known Exits Taken . | . . . Unknown Exits Taken 2 | 1 1 . Scrap Searched 2 | . . 2 Spaces Dug . | . . . Terrain Destroyed . | . . . Melee . | . . . Projectile . | . . . AOE . | . . . Terrain Rammed . | . . . Walls Destroyed . | . . . Machines Disabled . | . . . Actions | -11 -10 -10 --------- Run | Jun Mat Sub Total 2309 | 10 356 1943 Wait 713 | . 5 708 Move 1477 | 8 292 1177 Hop . | . . . Pick Up 16 | . 7 9 Fast Attach 5 | . 3 2 Attach 9 | . 3 6 Detach 4 | . 2 2 Swap 3 | 2 1 . Drop 3 | . 2 1 Fire 71 | . 33 38 Melee . | . . . Ram . | . . . Kick . | . . . Crush 8 | . 8 . Escape Stasis . | . . . Rewire . | . . . Trap . | . . . Miscellaneous . | . . . Route ------- -11/Junkyard -10/Materials (discovered 2 exits: [*Mat] / *Sub) -10/Subcaves (discovered 1 exit: [*Mat]) History --------- Turn | Location | Event 4 | -11/Junkyard | Discovered new exit (range 3) 17 | -11/Junkyard | Entered Materials 109 | -10/Materials | Discovered new exit (range 16) 207 | -10/Materials | Core integrity fell below 50% 306 | -10/Materials | Build established: Mutant 598 | -10/Materials | Discovered new exit (range 11) 614 | -10/Materials | Entered Subcaves 1721 | -10/Subcaves | Discovered new exit (range 15) 1782 | -10/Subcaves | Core integrity fell below 20% 2339 | -10/Subcaves | Visited triangular shrine 2347 | -10/Subcaves | Found Prototype Device 2347 | -10/Subcaves | Identified V3-11A's Pendant 2352 | -10/Subcaves | Befriended Subdweller 2432 | -10/Subcaves | Visited 4L-MR0's lab 2442 | -10/Subcaves | Found Cargo Legs 2567 | -10/Subcaves | Befriended Subdweller 3027 | -10/Subcaves | Befriended Subdweller 3055 | -10/Subcaves | Core destroyed Last Messages --------------- 02747_ Acquired Cobbler Unit. 02749_ Acquired Battle Rifle. 02945_ Acquired 10 matter. 03027_ 0Z-QYT(R): "UGOIGO!" 03031_ Searching scrap... 03031_ Found Sub. Power Source. 03031_ Found Sub. Machine Gun. 03031_ Found 36 Matter. 03034_ Acquired Sub. Machine Gun. 03036_ Dropped Beam Cannon. 03045_ Searching scrap... 03045_ Found Battle Rifle. 03045_ Found Mak. Armor Plating. 03045_ Found 36 Matter. 03046_ Acquired 10 matter. 03048_ Acquired Mak. Armor Plating. 03050_ Acquired Battle Rifle. 03055_ Triggered Piercing Trap. 03055_ Spikes shoot up from the floor. 03055_ Critical hit (Impale). Map ----- +----------------------------------------------------+ | | | | | | | | | | | | | | | | | | | | | | | | | | | | | | | | | | | | | ?????????????????????????????????????????????????? | | ?????????????????????????????????????????????????? | | ???????????????????????##????????????????????????? | | ???????????????????????< ##??????????????????????? | | ???????????????????????? ##?????????????????????? | | ????????????????????????< <#?????????????????????? | | ????????????????????????# #?????????????????????? | | ????????????????????????#@<#?????????????????????? | | ??????????????????????### <#?????????????????????? | | ??????????????????????#"RR<#?????????????????????? | | ?????????????##########" ##?????????????????????? | | ?????????????#" *"# ###?????????????????????? | | ?????????????#"%] ## %"#?????????????????????? | | ?????????????##" ## "##""#?????????????????????? | | ?????###????#######" "#####?????????????????????? | | ????## ##???# ### " ###?????????????????????? | | ???## ###?# #??? #????????????????? | | ??## # ### ########## ##??????????????? | | ### #?????????? #??????????????? | | ## #???????????? ??????????????? | | < # # ##??????????? #??????????????? | | #### #??????????? ### ???????????? | | ### #???????????# ??????????? | | ##### ### ###?????????# ???????????? | | ??#### ## #?????????# ????????????? | | ??# #?????????# ?????????????? | | ??# #?????????# ???????????????? | | ### ## #??####?### #????????????????? | | # & ## #### ### ##???????????????? | | * & # #???????????????? | | #######?????????? | | # ## #?????????? | +----------------------------------------------------+ Best States ------------- Heat Dissipation 25 Energy Generation 10 Energy Capacity 250 Matter Stores 300 Matter Capacity 300 Sight Range 16 Terrain Scan Density 10 Evasion (%) 40 Targeting Accuracy 5 Recoil Reduction 2 Item Schematics ----------------- None Robot Schematics ------------------ None Fabricated ------------ Nothing Alien Tech Used ----------------- None Achievements -------------- None Challenges ------------ None Game ------ Seed MappingSapperFrame Manual? 0 Play Time 00:10:53 Cumulative 1340.2 hours Start 2023.07.12 @ 03:37:26 End 2023.07.12 @ 03:46:37 Sessions 1 Manual Loads 0 Difficulty Rogue Special Mode None Game No. 960 Rogue 956 Adventurer 4 Explorer 0 Win Type - Total 151 Types 113/10/10/6/2/1/1/5/3 Lore% 95 Gallery% 98 Achievement% 98 Wizard Run 0 Options --------- ASCII 0 Keyboard 1 Movement Vi Keybinds 0 Fullscreen 0 Font 20/X11 Map View 76x50 Tactical HUD 1 Map Filters NONE Filters NONE Steam 1 RUN: bd5961e1-72d5-44d6-b798-bc2394216453